bitfinex-derivatives/quotes_BTCF0:USTF0_20250930
["timestamp","ask_amount","ask_price","bid_price","bid_amount"]
[1759257406882,0.0881023,113490.0,113480.0,0.54173976]
[1759257407088,0.86528854,113490.0,113480.0,0.11499976]
[1759257407281,1.67109738,113490.0,113480.0,0.07921976]
[1759257407481,0.08811,113480.0,113470.0,0.09282976]
[1759257407688,1.66705624,113480.0,113470.0,0.16733756]
[1759257407981,1.66705624,113480.0,113470.0,0.0881178]
[1759257408187,1.66705624,113480.0,113470.0,0.15148411]
[1759257410888,0.86529624,113480.0,113470.0,0.15148411]
[1759257411090,3.45441624,113480.0,113470.0,0.16515411]
[1759257412194,0.86529624,113480.0,113470.0,0.16515411]
[1759257412389,3.03803,113480.0,113470.0,0.18732411]
[1759257412589,0.86529624,113480.0,113470.0,0.18732411]
[1759257412794,3.45445624,113480.0,113470.0,0.18732411]
[1759257413390,3.44013095,113480.0,113470.0,0.18732411]
[1759257414491,3.44013095,113480.0,113470.0,0.1239578]
[1759257414690,3.44013095,113480.0,113470.0,0.03584]
[1759257414890,3.44013095,113480.0,113470.0,0.07697794]
[1759257416999,3.44013095,113480.0,113470.0,0.16509584]
[1759257417298,3.44017095,113480.0,113470.0,0.16509584]
[1759257417496,0.85097095,113480.0,113470.0,0.16509584]
[1759257417997,3.44017095,113480.0,113470.0,0.18726584]
[1759257418691,0.85097095,113480.0,113470.0,0.18726584]
[1759257418998,3.44017095,113480.0,113470.0,0.18726584]
[1759257419299,0.85097095,113480.0,113470.0,0.18726584]
[1759257419800,3.44017095,113480.0,113470.0,0.18726584]
[1759257420395,3.44017095,113480.0,113470.0,0.09914794]
[1759257421100,0.85097095,113480.0,113470.0,0.09914794]
[1759257421297,3.44021095,113480.0,113470.0,0.18726574]
[1759257423799,0.85097095,113480.0,113470.0,0.18726574]
[1759257423999,3.44017095,113480.0,113470.0,0.18726574]
[1759257424295,0.85097095,113480.0,113470.0,0.18726574]
[1759257424500,3.44017095,113480.0,113470.0,0.18726574]
[1759257424796,0.85097095,113480.0,113470.0,0.18726574]
[1759257424998,3.44017095,113480.0,113470.0,0.18726574]
[1759257425203,0.85097095,113480.0,113470.0,0.18726574]
[1759257425694,3.07937095,113480.0,113470.0,0.18726574]
[1759257425998,2.66298471,113480.0,113470.0,0.54034404]
[1759257426204,0.88983,113480.0,113470.0,1.00364203]
[1759257426388,0.88983,113480.0,113470.0,0.94034404]
[1759257426599,0.89023,113480.0,113470.0,0.94034404]
[1759257428399,1.66741624,113480.0,113470.0,0.43584]
[1759257428591,1.66741624,113480.0,113470.0,0.07698148]
[1759257430401,1.66741624,113480.0,113470.0,0.16509928]
[1759257430599,1.66741624,113480.0,113470.0,0.18726928]
[1759257430996,1.66741624,113480.0,113470.0,0.16511352]
[1759257433808,3.45485624,113480.0,113470.0,0.18728352]
[1759257434306,0.86569624,113480.0,113470.0,0.1239578]
[1759257434506,3.45485624,113480.0,113470.0,0.1239578]
[1759257434708,3.45485624,113480.0,113470.0,0.07702048]
[1759257435104,3.45485624,113480.0,113470.0,0.06335048]
[1759257436108,3.44053059,113480.0,113470.0,0.15146828]
[1759257436302,3.44053059,113480.0,113470.0,0.07702048]
[1759257437209,3.44053059,113480.0,113470.0,0.1017878]
[1759257437808,3.44053059,113480.0,113470.0,0.01367]
[1759257438910,3.44053059,113480.0,113470.0,0.1017878]
[1759257439910,3.44053059,113480.0,113470.0,0.01367]
[1759257440310,0.85137059,113480.0,113470.0,0.1232178]
[1759257440712,0.84079199,113480.0,113470.0,0.1232178]
[1759257440908,0.84079199,113480.0,113470.0,0.6188238]
[1759257440909,0.0004,113480.0,113470.0,0.6188238]
[1759257441102,2.2258049,113490.0,113480.0,0.1232]
[1759257441303,1.78828,113490.0,113480.0,0.618806]
[1759257441617,0.38344658,113500.0,113490.0,0.1231923]
[1759257441618,2.2363787,113500.0,113490.0,0.1231923]
[1759257441814,0.0008,113500.0,113490.0,1.0187983]
[1759257442118,0.0880919,113510.0,113500.0,0.1017545]
[1759257442413,0.0888919,113510.0,113500.0,0.18647077]
[1759257442613,2.6779719,113510.0,113500.0,0.18647077]
[1759257442818,0.0888919,113510.0,113500.0,0.18647077]
[1759257443017,2.6779319,113510.0,113500.0,0.18647077]
[1759257443217,2.6779319,113510.0,113500.0,0.09837627]
[1759257443609,3.45511814,113510.0,113500.0,0.09837627]
[1759257443815,3.0387319,113510.0,113500.0,0.09837627]
[1759257444119,3.45511814,113510.0,113500.0,0.09837627]
[1759257444814,3.45511814,113510.0,113500.0,0.07694627]
[1759257445013,0.0880941,113500.0,113490.0,0.16871906]
[1759257445317,0.86528034,113500.0,113490.0,0.16871906]
[1759257447318,0.86528034,113500.0,113490.0,0.14728906]
[1759257447620,0.088103,113490.0,113480.0,0.11479976]
[1759257447816,0.43457964,113490.0,113480.0,0.18688043]
[1759257448314,3.43976588,113490.0,113480.0,0.18688043]
[1759257448519,1.65248588,113490.0,113480.0,0.18688043]
[1759257450121,1.23609964,113490.0,113480.0,0.18688043]
[1759257450419,1.65248588,113490.0,113480.0,0.18688043]
[1759257450723,0.85096588,113490.0,113480.0,0.18688043]
[1759257450924,3.43972588,113490.0,113480.0,0.18688043]
[1759257451924,1.65244588,113490.0,113480.0,0.18688043]
[1759257452319,1.65244588,113490.0,113480.0,0.09876963]
[1759257452517,1.65244588,113490.0,113480.0,0.07684963]
[1759257453823,1.65244588,113490.0,113480.0,0.16495873]
[1759257454124,1.65244588,113490.0,113480.0,0.18687873]
[1759257454625,3.43972588,113490.0,113480.0,0.18687873]
[1759257454926,3.43972588,113490.0,113480.0,0.09876963]
[1759257456214,0.85096588,113490.0,113480.0,0.09876963]
[1759257456412,3.43972588,113490.0,113480.0,0.09876963]
[1759257457521,3.43972588,113490.0,113480.0,0.07684963]
[1759257457716,3.85611212,113490.0,113480.0,0.07684963]
[1759257457916,0.0881108,113480.0,113470.0,0.09476106]
[1759257458121,0.86529704,113480.0,113470.0,0.06318963]
[1759257459324,3.45405704,113480.0,113470.0,0.06318963]
[1759257459824,0.86529704,113480.0,113470.0,0.07644963]
[1759257460219,3.45409704,113480.0,113470.0,0.07644963]
[1759257460731,0.86529704,113480.0,113470.0,0.07644963]
[1759257461026,0.86529704,113480.0,113470.0,0.09836963]
[1759257461228,3.45409704,113480.0,113470.0,0.09836963]
[1759257461632,0.86529704,113480.0,113470.0,0.09836963]
[1759257462032,3.45413704,113480.0,113470.0,0.09836963]
[1759257462222,3.71973704,113480.0,113470.0,0.09836963]
[1759257463026,3.71973704,113480.0,113470.0,0.07644963]
[1759257463231,3.71973704,113480.0,113470.0,0.09836963]
[1759257463736,1.13089704,113480.0,113470.0,0.09836963]
[1759257463930,3.71977704,113480.0,113470.0,0.09836963]
[1759257464231,4.13647628,113480.0,113470.0,0.09836963]
[1759257465333,1.54759628,113480.0,113470.0,0.09836963]
[1759257465533,4.13651628,113480.0,113470.0,0.09836963]
[1759257466032,4.13651628,113480.0,113470.0,0.07644963]
[1759257467134,1.54759628,113480.0,113470.0,0.07644963]
[1759257467334,4.13651628,113480.0,113470.0,0.07644963]
[1759257469435,1.54759628,113480.0,113470.0,0.07644963]
[1759257469638,1.54759628,113480.0,113470.0,0.09813963]
[1759257470032,4.13655628,113480.0,113470.0,0.09813963]
[1759257471238,0.7145108,113480.0,113470.0,0.09813963]
[1759257471440,4.13655628,113480.0,113470.0,0.09813963]
[1759257473338,1.54759628,113480.0,113470.0,0.09813963]
[1759257473539,4.13659628,113480.0,113470.0,0.09813963]
[1759257474540,1.54759628,113480.0,113470.0,0.09813963]
[1759257474931,3.72005354,113480.0,113470.0,0.60280087]
[1759257475131,3.72045354,113480.0,113470.0,0.60280087]
[1759257475433,3.72045354,113480.0,113470.0,0.18625813]
[1759257475739,4.13699628,113480.0,113470.0,0.60280087]
[1759257477141,4.13699628,113480.0,113470.0,0.18625813]
[1759257477341,4.13699628,113480.0,113470.0,0.60280087]
[1759257477936,1.13145354,113480.0,113470.0,0.60280087]
[1759257478141,3.72045354,113480.0,113470.0,0.60280087]
[1759257481043,3.72045354,113480.0,113470.0,0.51468237]
[1759257481239,4.13699628,113480.0,113470.0,0.09813963]
[1759257484240,4.13699628,113480.0,113470.0,0.18625813]
[1759257484443,4.13699628,113480.0,113470.0,0.1230685]
[1759257484744,4.12267112,113480.0,113470.0,0.53961124]
[1759257485140,4.12267112,113480.0,113470.0,0.45149274]
[1759257485538,4.12267112,113480.0,113470.0,0.5307125]
[1759257486337,4.12267112,113480.0,113470.0,0.11416976]
[1759257486538,4.12267112,113480.0,113470.0,0.5307125]
[1759257487038,4.12271112,113480.0,113470.0,0.5307125]
[1759257487234,4.11213254,113480.0,113470.0,0.5307125]
[1759257488545,3.27904706,113480.0,113470.0,0.5307125]
[1759257488748,4.11213254,113480.0,113470.0,0.5307125]
[1759257489248,1.52309254,113480.0,113470.0,0.5307125]
[1759257489444,4.11213254,113480.0,113470.0,0.5307125]
[1759257489849,1.52309254,113480.0,113470.0,0.5307125]
[1759257490147,3.6955898,113480.0,113470.0,0.5307125]
[1759257490850,3.6955898,113480.0,113470.0,0.11416976]
[1759257491146,3.6955898,113480.0,113470.0,0.5307125]
[1759257492442,1.9080698,113480.0,113470.0,0.5307125]
[1759257492951,1.9080698,113480.0,113470.0,0.09247976]
[1759257493151,2.32461254,113480.0,113470.0,0.11416976]
[1759257493551,2.32461254,113480.0,113470.0,0.5307125]
[1759257493850,1.52309254,113480.0,113470.0,0.5307125]
[1759257494155,3.6955898,113480.0,113470.0,0.59410947]
[1759257494352,3.6955898,113480.0,113470.0,0.51488971]
[1759257494539,1.1065498,113480.0,113470.0,0.51488971]
[1759257494744,1.9080698,113480.0,113470.0,0.51488971]
[1759257496051,3.6955898,113480.0,113470.0,0.51488971]
[1759257496351,3.27904706,113480.0,113470.0,0.51488971]
[1759257496539,3.6955898,113480.0,113470.0,0.51488971]
[1759257496744,1.1065498,113480.0,113470.0,0.51488971]
[1759257496944,1.9080698,113480.0,113470.0,0.51488971]
[1759257497846,1.1065498,113480.0,113470.0,0.51488971]
[1759257498051,1.9080698,113480.0,113470.0,0.51488971]
[1759257499557,1.1065498,113480.0,113470.0,0.51488971]
[1759257499757,1.9080698,113480.0,113470.0,0.51488971]
[1759257501053,0.32920706,113480.0,113470.0,0.91488971]
[1759257501357,1.11640215,113480.0,113470.0,1.2915125]
[1759257502048,1.11600215,113480.0,113470.0,1.379631]
[1759257502359,0.31488215,113480.0,113470.0,1.379631]
[1759257502548,1.11636215,113480.0,113470.0,1.379631]
[1759257503155,0.31488215,113480.0,113470.0,1.379631]
[1759257503354,1.11636215,113480.0,113470.0,1.379631]
[1759257503755,0.85076215,113480.0,113470.0,1.379631]
[1759257505451,0.04928215,113480.0,113470.0,1.379631]
[1759257505657,0.03870463,113480.0,113470.0,1.79617374]
[1759257505951,0.84018463,113480.0,113470.0,1.379631]
[1759257506152,0.83978463,113480.0,113470.0,1.379631]
[1759257506354,0.84018463,113480.0,113470.0,1.37956189]
[1759257511164,0.80188,113480.0,113470.0,1.37956189]
[1759257511462,0.8899908,113480.0,113470.0,1.37956189]
[1759257512460,0.8899908,113480.0,113470.0,0.87490065]
[1759257512665,0.8899908,113480.0,113470.0,1.29144339]
[1759257512970,1.30653354,113480.0,113470.0,1.37956189]
[1759257513572,1.72307628,113480.0,113470.0,0.11410065]
[1759257513771,2.08387628,113480.0,113470.0,0.11410065]
[1759257513968,1.66733354,113480.0,113470.0,0.53064339]
[1759257514171,2.08387628,113480.0,113470.0,0.11410065]
[1759257514375,2.48387628,113480.0,113470.0,0.09241065]
[1759257514566,1.6507908,113480.0,113470.0,0.11518065]
[1759257514766,3.91035628,113480.0,113470.0,0.53172339]
[1759257515771,3.91035628,113480.0,113470.0,0.11518065]
[1759257516768,1.32159628,113480.0,113470.0,0.11518065]
[1759257516975,3.91035628,113480.0,113470.0,0.11518065]
[1759257517276,3.899778,113480.0,113470.0,0.11518065]
[1759257518475,4.260578,113480.0,113470.0,0.11518065]
[1759257519470,3.860578,113480.0,113470.0,0.11518065]
[1759257519665,1.271818,113480.0,113470.0,0.03603]
[1759257519866,3.860618,113480.0,113470.0,0.03603]
[1759257520475,3.02753252,113480.0,113470.0,0.03603]
[1759257520673,1.271818,113480.0,113470.0,0.03603]
[1759257520874,3.860618,113480.0,113470.0,0.03603]
[1759257522275,3.860618,113480.0,113470.0,0.09932031]
[1759257523077,1.271818,113480.0,113470.0,0.09932031]
[1759257523278,3.860618,113480.0,113470.0,0.09932031]
[1759257523576,3.48549306,113480.0,113470.0,0.03603]
[1759257523883,0.89669306,113480.0,113470.0,0.03603]
[1759257524072,0.48015032,113480.0,113470.0,0.45257274]
[1759257524271,2.65240758,113480.0,113470.0,0.4524495]
[1759257524473,0.86500758,113480.0,113470.0,0.53160015]
[1759257524673,0.06360758,113480.0,113470.0,0.53160015]
[1759257524980,0.86500758,113480.0,113470.0,0.61971865]
[1759257525568,0.06360758,113480.0,113470.0,0.61971865]
[1759257525773,0.06360758,113480.0,113470.0,0.540568]
[1759257525975,0.86500758,113480.0,113470.0,0.540568]
[1759257526479,0.86540758,113480.0,113470.0,0.61971865]
[1759257526878,0.86540758,113480.0,113470.0,0.540568]
[1759257527378,0.86540758,113480.0,113470.0,0.53160015]
[1759257527580,0.86540758,113480.0,113470.0,0.11518065]
[1759257527879,0.86540758,113480.0,113470.0,0.03603]
[1759257529582,1.28178708,113480.0,113470.0,0.03435]
[1759257529971,1.30196105,113480.0,113470.0,0.03435]
[1759257530781,0.50060105,113480.0,113470.0,0.03435]
[1759257530982,1.28178708,113480.0,113470.0,0.03435]
[1759257532584,1.28178708,113480.0,113470.0,0.01326]
[1759257532784,1.28178708,113480.0,113470.0,0.03435]
[1759257533684,1.26746252,113480.0,113470.0,0.11350065]
[1759257534184,0.46610252,113480.0,113470.0,0.11350065]
[1759257534384,1.26746252,113480.0,113470.0,0.03435]
[1759257534685,0.48641367,113480.0,113470.0,0.03435]
[1759257534982,0.85104302,113480.0,113470.0,0.03435]
[1759257535182,1.26746252,113480.0,113470.0,0.03435]
[1759257535382,0.46610252,113480.0,113470.0,0.11350065]
[1759257535583,1.26746252,113480.0,113470.0,0.11350065]
[1759257536185,0.46610252,113480.0,113470.0,0.11350065]
[1759257536384,1.26746252,113480.0,113470.0,0.11350065]
[1759257537086,0.04968302,113480.0,113470.0,0.11350065]
[1759257537288,1.26746252,113480.0,113470.0,0.03435]
[1759257537987,1.26746252,113480.0,113470.0,0.11350065]
[1759257539988,0.46610252,113480.0,113470.0,0.11350065]
[1759257540191,1.26746252,113480.0,113470.0,0.11350065]
[1759257540484,0.46610252,113480.0,113470.0,0.11350065]
[1759257540677,0.85104302,113480.0,113470.0,0.11350065]
[1759257541085,1.26746252,113480.0,113470.0,0.11350065]
[1759257541881,1.26746252,113480.0,113470.0,0.13119703]
[1759257542586,1.26746252,113480.0,113470.0,0.05204638]
[1759257544485,0.46610252,113480.0,113470.0,0.05204638]
[1759257544692,1.26746252,113480.0,113470.0,0.05204638]
[1759257544991,0.46610252,113480.0,113470.0,0.05204638]
[1759257545190,1.26742252,113480.0,113470.0,0.05204638]
[1759257547788,1.62822252,113480.0,113470.0,0.01769638]
[1759257548089,1.62822252,113480.0,113470.0,0.08107187]
[1759257548389,1.5789395,113480.0,113470.0,0.11067703]
[1759257549194,1.6670503,113480.0,113470.0,0.13176703]
[1759257549693,1.6670503,113480.0,113470.0,0.11067703]
[1759257550892,1.6670503,113480.0,113470.0,0.0948898]
[1759257551288,1.6670503,113480.0,113470.0,0.0810598]
[1759257553594,1.2506308,113480.0,113470.0,0.0948898]
[1759257553795,0.8657303,113480.0,113470.0,0.0948898]
[1759257553995,3.4544503,113480.0,113470.0,0.0948898]
[1759257554197,3.4544503,113480.0,113470.0,0.1159798]
[1759257556786,0.8657303,113480.0,113470.0,0.1159798]
[1759257556993,3.4544503,113480.0,113470.0,0.1159798]
[1759257557302,3.4544503,113480.0,113470.0,0.05261638]
[1759257557495,0.8657303,113480.0,113470.0,0.05261638]
[1759257557695,3.4544503,113480.0,113470.0,0.05261638]
[1759257557995,3.4544503,113480.0,113470.0,0.14073488]
[1759257558396,3.44012554,113480.0,113470.0,0.14073488]
[1759257558597,3.44012554,113480.0,113470.0,0.21988553]
[1759257559500,3.44012554,113480.0,113470.0,0.13176703]
[1759257559806,0.85140554,113480.0,113470.0,0.13176703]
[1759257559996,1.65272554,113480.0,113470.0,0.13176703]
[1759257560900,0.85140554,113480.0,113470.0,0.13176703]
[1759257561197,1.65272554,113480.0,113470.0,0.13176703]
[1759257562006,0.85140554,113480.0,113470.0,0.13176703]
[1759257562206,1.65272554,113480.0,113470.0,0.13176703]
[1759257562904,0.85140554,113480.0,113470.0,0.13176703]
[1759257563106,1.65272554,113480.0,113470.0,0.21988553]
[1759257565409,0.85140554,113480.0,113470.0,0.21988553]
[1759257565709,0.0881108,113480.0,113470.0,0.63630503]
[1759257565907,0.8894308,113480.0,113470.0,0.63630503]
[1759257566400,0.0881108,113480.0,113470.0,0.99710503]
[1759257566605,0.3537085,113490.0,113480.0,0.1233207]
[1759257566806,1.14525071,113490.0,113480.0,0.61889085]
[1759257567109,1.14445071,113490.0,113480.0,1.01889085]
[1759257567301,0.34313071,113490.0,113480.0,1.01889085]
[1759257567501,1.14485071,113490.0,113480.0,1.01889085]
[1759257567702,1.14445071,113490.0,113480.0,1.01889085]
[1759257567898,1.14485071,113490.0,113480.0,1.01889085]
[1759257568410,1.13052746,113490.0,113480.0,1.01889085]
[1759257575911,1.13052746,113490.0,113480.0,0.60247135]
[1759257576212,1.13052746,113490.0,113480.0,1.01889085]
[1759257576807,1.13052746,113490.0,113480.0,0.60247135]
[1759257577612,1.13052746,113490.0,113480.0,1.01889085]
[1759257578518,1.11620417,113490.0,113480.0,1.01889085]
[1759257579510,1.11620417,113490.0,113480.0,0.61889085]
[1759257581519,0.31488417,113490.0,113480.0,0.61889085]
[1759257581811,1.11612417,113490.0,113480.0,0.61889085]
[1759257584117,0.31488417,113490.0,113480.0,0.61889085]
[1759257584316,1.11612417,113490.0,113480.0,0.61889085]
[1759257585113,0.31488417,113490.0,113480.0,0.61889085]
[1759257585419,1.11612417,113490.0,113480.0,0.61889085]
[1759257586217,1.53249071,113490.0,113480.0,0.53072719]
[1759257587116,1.30611504,113490.0,113480.0,0.53072719]
[1759257588214,0.50487504,113490.0,113480.0,0.53072719]
[1759257588422,1.30607504,113490.0,113480.0,0.45157654]
[1759257589322,1.30607504,113490.0,113480.0,0.03521]
[1759257589515,1.66687504,113490.0,113480.0,0.09847812]
[1759257589716,1.66687504,113490.0,113480.0,0.07642812]
[1759257590019,1.2505085,113490.0,113480.0,0.09891812]
[1759257590220,1.66687504,113490.0,113480.0,0.07642812]
[1759257590623,0.86567504,113490.0,113480.0,0.09891812]
[1759257590920,3.45411504,113490.0,113480.0,0.09891812]
[1759257594424,0.86567504,113490.0,113480.0,0.09891812]
[1759257594624,3.45411504,113490.0,113480.0,0.09891812]
[1759257597025,0.0885085,113490.0,113480.0,0.51528466]
[1759257597227,0.0885085,113490.0,113480.0,0.45201654]
[1759257597523,1.30607504,113490.0,113480.0,0.54012724]
[1759257598121,1.29175168,113490.0,113480.0,0.53116719]
[1759257598523,0.49055168,113490.0,113480.0,0.53116719]
[1759257598722,1.29175168,113490.0,113480.0,0.53116719]
[1759257599428,0.49055168,113490.0,113480.0,0.53116719]
[1759257599621,1.29175168,113490.0,113480.0,0.53116719]
[1759257599818,1.29175168,113490.0,113480.0,0.54907572]
[1759257600920,0.49055168,113490.0,113480.0,0.54907572]
[1759257601125,0.07418514,113490.0,113480.0,0.54907572]
[1759257601331,0.49055168,113490.0,113480.0,0.54907572]
[1759257601525,0.49055168,113490.0,113480.0,0.13270918]
[1759257601526,1.29175168,113490.0,113480.0,0.13270918]
[1759257601826,1.29175168,113490.0,113480.0,0.54907572]
[1759257603117,1.29175168,113490.0,113480.0,0.13270918]
[1759257603421,1.29175168,113490.0,113480.0,0.54907572]
[1759257604422,0.49055168,113490.0,113480.0,0.54907572]
[1759257604930,1.29175168,113490.0,113480.0,0.54907572]
[1759257605930,1.29175168,113490.0,113480.0,0.63718642]
[1759257606328,0.49055168,113490.0,113480.0,0.63718642]
[1759257606526,1.29175168,113490.0,113480.0,0.63718642]
[1759257606730,1.29175168,113490.0,113480.0,0.54907572]
[1759257607729,0.87538514,113490.0,113480.0,0.54907572]
[1759257607927,1.29175168,113490.0,113480.0,0.54907572]
[1759257608130,1.27742834,113490.0,113480.0,0.54907572]
[1759257608329,0.0598618,113490.0,113480.0,1.05355306]
[1759257608534,0.8606218,113490.0,113480.0,1.33520241]
[1759257608830,0.0598618,113490.0,113480.0,1.33520241]
[1759257609022,0.8606218,113490.0,113480.0,1.81435306]
[1759257609226,0.8606218,113490.0,113480.0,1.8142853]
[1759257609526,0.8610218,113490.0,113480.0,1.8142853]
[1759257609934,0.80156,113490.0,113480.0,1.8142853]
[1759257610225,0.80172,113490.0,113480.0,1.73520241]
[1759257610436,0.80172,113490.0,113480.0,1.8142608]
[1759257610633,0.80132,113490.0,113480.0,1.73520241]
[1759257610822,0.80172,113490.0,113480.0,1.73520241]
[1759257611234,0.80172,113490.0,113480.0,1.81424105]
[1759257612029,0.0004,113490.0,113480.0,2.23060759]
[1759257612234,0.30509915,113500.0,113490.0,0.123563]
[1759257612538,0.83957915,113500.0,113490.0,1.39610601]
[1759257612835,0.83997915,113500.0,113490.0,1.39610601]
[1759257613634,0.6237793,113500.0,113490.0,1.39610601]
[1759257614033,0.0004,113500.0,113490.0,1.79610601]
[1759257614226,0.0880835,113520.0,113510.0,0.1235475]
[1759257614427,0.47097578,113530.0,113520.0,0.1235397]
[1759257614724,1.27145578,113530.0,113520.0,1.09984196]
[1759257615635,1.27145578,113530.0,113520.0,1.01176226]
[1759257616028,1.68782232,113530.0,113520.0,1.01176226]
[1759257616434,1.68782232,113530.0,113520.0,0.59539572]
[1759257616841,1.66732414,113530.0,113520.0,0.59539572]
[1759257617028,1.30652414,113530.0,113520.0,1.06205694]
[1759257617532,0.8901576,113530.0,113520.0,1.47842348]
[1759257617729,0.8903576,113530.0,113520.0,1.41530072]
[1759257617924,0.0884776,113530.0,113520.0,1.47842348]
[1759257618130,0.8899576,113530.0,113520.0,1.47842348]
[1759257618340,0.8903576,113530.0,113520.0,1.47842348]
[1759257619343,0.8903576,113530.0,113520.0,1.41530072]
[1759257623740,1.70672414,113530.0,113520.0,0.13368794]
[1759257623944,2.48389068,113530.0,113520.0,0.01297]
[1759257624144,0.0880797,113520.0,113510.0,0.11658168]
[1759257624338,0.92081278,113520.0,113510.0,0.11658168]
[1759257624744,0.92081278,113520.0,113510.0,0.1253771]
[1759257624939,0.92081278,113520.0,113510.0,0.06225434]
[1759257625750,1.68161278,113520.0,113510.0,0.04408542]
[1759257626050,1.68161278,113520.0,113510.0,0.01297]
[1759257626553,1.68161278,113520.0,113510.0,0.03529]
[1759257627053,0.0880874,113510.0,113500.0,0.1541727]
[1759257627260,1.30621394,113510.0,113500.0,0.1541727]
[1759257627455,2.48338048,113510.0,113500.0,0.01297]
[1759257627650,1.6506474,113510.0,113500.0,0.01297]
[1759257627845,2.48338048,113510.0,113500.0,0.01297]
[1759257628054,0.0880952,113500.0,113490.0,0.04419327]
[1759257628253,0.92082828,113500.0,113490.0,0.46055981]
[1759257628452,0.50446174,113500.0,113490.0,0.45165654]
[1759257629662,1.28162828,113500.0,113490.0,0.01297]
[1759257629959,1.28162828,113500.0,113490.0,0.03529]
[1759257630360,3.06846828,113500.0,113490.0,0.03529]
[1759257630563,1.68162828,113500.0,113490.0,0.01297]
[1759257630759,4.27062828,113500.0,113490.0,0.01297]
[1759257631663,1.68162828,113500.0,113490.0,0.01297]
[1759257631863,4.27066828,113500.0,113490.0,0.01297]
[1759257632355,4.27066828,113500.0,113480.0,0.09876276]
[1759257632356,0.088103,113490.0,113480.0,0.09876276]
[1759257632556,1.28163608,113490.0,113480.0,0.01332]
[1759257632763,0.0881107,113480.0,113470.0,0.09876276]
[1759257633064,2.06963972,113480.0,113470.0,0.01332]
[1759257633268,0.0881185,113470.0,113460.0,0.45965529]
[1759257633451,1.30688504,113470.0,113460.0,0.09885529]
[1759257634165,0.50448504,113470.0,113460.0,0.09885529]
[1759257634465,1.30684504,113470.0,113460.0,0.45209907]
[1759257634663,1.30684504,113470.0,113460.0,0.46083287]
[1759257635564,0.50448504,113470.0,113460.0,0.46083287]
[1759257635768,1.30688504,113470.0,113460.0,0.46083287]
[1759257636166,0.50448504,113470.0,113460.0,0.46083287]
[1759257636367,1.30684504,113470.0,113460.0,0.46083287]
[1759257636869,0.50448504,113470.0,113460.0,0.46083287]
[1759257637071,1.30680504,113470.0,113460.0,0.46083287]
[1759257637771,0.50448504,113470.0,113460.0,0.46083287]
[1759257637973,1.30676504,113470.0,113460.0,0.46083287]
[1759257638871,0.50448504,113470.0,113460.0,0.46083287]
[1759257639067,1.30672504,113470.0,113460.0,0.46083287]
[1759257641178,1.30672504,113470.0,113460.0,0.04446633]
[1759257643079,3.09388504,113470.0,113460.0,0.04446633]
[1759257643874,0.50448504,113470.0,113460.0,0.04446633]
[1759257644078,3.09380504,113470.0,113460.0,0.04446633]
[1759257645379,3.87097158,113470.0,113460.0,0.02214633]
[1759257645573,4.27097158,113470.0,113460.0,9.253e-05]
[1759257645884,1.68165158,113470.0,113460.0,9.253e-05]
[1759257646181,4.27113158,113470.0,113460.0,0.01341253]
[1759257646482,3.8550534,113470.0,113460.0,9.253e-05]
[1759257647371,0.088134,113450.0,113440.0,0.01332]
[1759257647576,1.6679889,113450.0,113440.0,0.03458]
[1759257647778,0.8655889,113450.0,113440.0,0.01372]
[1759257647979,3.4554289,113450.0,113440.0,0.01372]
[1759257648288,0.8655889,113450.0,113440.0,0.02238552]
[1759257648580,3.45567857,113450.0,113440.0,0.03498]
[1759257649280,3.45571857,113450.0,113440.0,0.03498]
[1759257649482,0.86567857,113450.0,113440.0,0.03498]
[1759257649782,3.45563857,113450.0,113440.0,0.03498]
[1759257650281,0.86567857,113450.0,113440.0,0.03498]
[1759257650482,3.45571857,113450.0,113440.0,0.03498]
[1759257650683,3.09491857,113450.0,113440.0,0.03498]
[1759257651083,0.50487857,113450.0,113440.0,0.1231218]
[1759257651382,3.09499857,113450.0,113440.0,0.1231218]
[1759257651586,3.09499857,113450.0,113440.0,0.03498]
[1759257651883,3.45579857,113450.0,113440.0,0.03498]
[1759257652084,0.86567857,113450.0,113440.0,0.03498]
[1759257652283,3.45575857,113450.0,113440.0,0.03498]
[1759257652480,0.86567857,113450.0,113440.0,0.04362178]
[1759257653179,3.45575857,113450.0,113440.0,0.04362178]
[1759257656079,3.45599857,113450.0,113440.0,0.04362178]
[1759257656479,3.45599857,113450.0,113440.0,0.13176358]
[1759257657985,0.86567857,113450.0,113440.0,0.13176358]
[1759257658181,3.45583857,113450.0,113440.0,0.13176358]
[1759257660690,0.44902367,113450.0,113440.0,0.13176358]
[1759257660990,3.09491857,113450.0,113440.0,0.90921848]
[1759257661194,3.09491857,113450.0,113440.0,0.97234124]
[1759257661491,0.50487857,113450.0,113440.0,0.49256358]
[1759257661695,3.09547857,113450.0,113440.0,0.49256358]
[1759257662287,3.09547857,113450.0,113440.0,0.55568634]
[1759257662688,3.09547857,113450.0,113440.0,0.19488634]
[1759257662877,3.45627857,113450.0,113440.0,0.13176358]
[1759257663690,3.09547857,113450.0,113440.0,0.13176358]
[1759257664384,0.50487857,113450.0,113440.0,0.13176358]
[1759257664590,3.09535857,113450.0,113440.0,0.13176358]
[1759257666691,3.45615857,113450.0,113440.0,0.04362178]
[1759257666986,3.45615857,113450.0,113440.0,0.13176358]
[1759257670095,0.44902367,113450.0,113440.0,0.13176358]
[1759257670397,3.09527857,113450.0,113440.0,0.13176358]
[1759257670995,3.45607857,113450.0,113440.0,0.13176358]
[1759257671190,3.09527857,113450.0,113440.0,0.13176358]
[1759257671897,3.45607857,113450.0,113440.0,0.13176358]
[1759257673494,3.45607857,113450.0,113440.0,0.19488634]
[1759257674693,3.45607857,113450.0,113440.0,0.10674454]
[1759257674994,3.45607857,113450.0,113440.0,0.19488634]
[1759257674995,0.86567857,113450.0,113440.0,0.19488634]
[1759257675200,3.44142989,113450.0,113440.0,0.19488634]
[1759257675806,3.4618684,113450.0,113440.0,0.10674454]
[1759257675997,3.4618684,113450.0,113440.0,0.07216454]
[1759257676189,3.4618684,113450.0,113440.0,0.06352276]
[1759257676388,3.8618684,113450.0,113440.0,0.0004]
[1759257676595,0.0881418,113440.0,113430.0,0.16459016]
[1759257676796,0.8655967,113440.0,113430.0,0.16539016]
[1759257677099,3.4557967,113440.0,113430.0,0.18665016]
[1759257677901,3.4557967,113440.0,113430.0,0.18763016]
[1759257679809,3.4557967,113440.0,113430.0,0.16539016]
[1759257680399,3.4558767,113440.0,113430.0,0.18763016]
[1759257680601,3.4558767,113440.0,113430.0,0.19654565]
[1759257681299,3.0394218,113440.0,113430.0,0.19654565]
[1759257681500,3.4559967,113440.0,113430.0,0.19654565]
[1759257683804,0.8655967,113440.0,113430.0,0.19654565]
[1759257684208,3.4563567,113440.0,113430.0,0.19654565]
[1759257684506,0.8655967,113440.0,113430.0,0.19654565]
[1759257684707,3.4563567,113440.0,113430.0,0.19654565]
[1759257685309,0.8655967,113440.0,113430.0,0.19654565]
[1759257685608,3.08118691,113440.0,113430.0,0.13342289]
[1759257687008,0.85126691,113440.0,113430.0,0.13342289]
[1759257687203,0.49046691,113440.0,113430.0,0.13342289]
[1759257687403,0.49046691,113440.0,113430.0,0.21233561]